bitfinex/quotes_SOLUSD_20230111
["timestamp","ask_amount","ask_price","bid_price","bid_amount"]
[1673427356296,137.6473,16.009,15.997,17.0]
[1673427358064,137.6473,16.009,15.995,46.91]
[1673427358275,137.6473,16.009,15.996,17.0]
[1673427362484,137.6473,16.009,15.993,20.0]
[1673427362485,137.6473,16.009,15.994,46.91]
[1673427362697,137.6473,16.009,15.993,46.91]
[1673427363847,20.0,16.007,15.992,46.91]
[1673427364283,20.0,16.005,15.992,46.91]
[1673427364898,20.0,16.005,15.993,17.0]
[1673427371119,66.87,16.007,15.993,17.0]
[1673427371642,85.62512149,16.007,15.993,17.0]
[1673427373428,85.62512149,16.007,15.992,17.0]
[1673427375435,66.87,16.007,15.992,17.0]
[1673427375644,66.87,16.007,15.993,66.91]
[1673427375854,66.87,16.007,15.994,17.0]
[1673427376908,66.87,16.007,15.993,17.0]
[1673427379102,46.87,16.007,15.993,17.0]
[1673427379426,117.6473,16.009,15.994,68.83]
[1673427379635,117.6473,16.009,15.994,66.91]
[1673427379827,117.6473,16.009,15.995,17.0]
[1673427380038,117.6473,16.009,15.996,46.9]
[1673427380464,117.6473,16.009,15.997,17.0]
[1673427380687,117.6473,16.009,15.996,17.0]
[1673427383312,117.6473,16.009,15.995,46.91]
[1673427383517,20.0,16.007,15.993,46.91]
[1673427384894,20.0,16.007,15.994,18.92]
[1673427385082,20.0,16.007,15.995,46.91]
[1673427385295,20.0,16.007,15.996,17.0]
[1673427387308,164.5073,16.009,15.996,17.0]
[1673427387528,117.6473,16.009,15.996,17.0]
[1673427387714,20.0,16.008,15.996,17.0]
[1673427387925,20.0,16.008,15.995,17.0]
[1673427388139,66.87,16.008,15.995,63.91]
[1673427389092,20.0,16.008,15.995,63.91]
[1673427389719,20.0,16.008,15.996,1.92]
[1673427394679,117.6473,16.009,15.996,21.92]
[1673427394870,117.6473,16.009,15.997,17.0]
[1673427399085,20.0,16.008,15.997,17.0]
[1673427399311,20.0,16.008,15.996,18.92]
[1673427399840,117.6473,16.009,15.996,18.92]
[1673427402355,20.0,16.008,15.996,18.92]
[1673427402670,66.87,16.008,15.991,70.1277513]
[1673427403290,66.87,16.008,15.992,46.91]
[1673427403924,66.87,16.008,15.993,18.92]
[1673427404140,66.87,16.008,15.993,38.92]
[1673427405811,66.87,16.008,15.992,46.91]
[1673427407379,66.87,16.008,15.993,17.0]
[1673427407798,66.87,16.008,15.994,46.91]
[1673427408021,66.87,16.008,15.995,17.0]
[1673427408230,66.87,16.008,15.993,17.0]
[1673427413698,66.87,16.008,15.994,0.96]
[1673427413910,66.87,16.008,15.994,47.87]
[1673427414118,66.87,16.008,15.995,17.0]
[1673427414330,20.0,16.008,15.995,17.0]
[1673427418743,20.0,16.008,15.995,63.91]
[1673427420954,20.0,16.008,15.995,17.0]
[1673427422431,20.0,16.008,15.992,46.91]
[1673427423369,20.0,16.006,15.992,46.91]
[1673427423794,20.0,16.006,15.993,17.0]
[1673427424111,20.0,16.006,15.994,46.91]
[1673427424319,20.0,16.006,15.995,17.0]
[1673427426949,46.87,16.008,15.995,17.0]
[1673427427147,117.6473,16.009,15.994,46.91]
[1673427427357,117.6473,16.009,15.995,1.92]
[1673427427577,117.6473,16.009,15.996,46.9]
[1673427427987,117.6473,16.009,15.997,17.0]
[1673427428205,117.6473,16.009,15.998,46.9]
[1673427428430,20.0,16.008,15.999,17.0]
[1673427433765,117.6473,16.009,15.999,17.0]
[1673427435572,20.0,16.008,15.999,17.0]
[1673427437151,117.6473,16.009,15.999,17.0]
[1673427437365,20.0,16.008,15.999,17.0]
[1673427441541,117.6473,16.009,15.999,17.0]
[1673427442401,20.0,16.008,15.999,17.0]
[1673427450493,117.6473,16.009,15.999,17.0]
[1673427451021,117.6473,16.009,16.0,90.0]
[1673427451221,117.6473,16.009,16.001,17.0]
[1673427454164,116.2399,16.011,16.001,17.0]
[1673427454384,116.2399,16.011,16.002,46.89]
[1673427454591,116.2399,16.011,16.003,17.0]
[1673427455311,116.2399,16.011,16.002,17.0]
[1673427455522,116.2399,16.011,16.003,46.88]
[1673427455849,116.2399,16.011,16.004,17.0]
[1673427456276,116.2399,16.011,16.003,63.88]
[1673427457211,116.2399,16.011,16.003,17.0]
[1673427457421,116.2399,16.011,16.002,17.0]
[1673427458051,116.2399,16.011,16.002,37.0]
[1673427459424,116.2399,16.011,16.002,17.0]
[1673427462053,114.4181,16.015,16.002,17.0]
[1673427462259,114.4181,16.015,16.003,48.8]
[1673427462479,114.4181,16.015,16.004,17.0]
[1673427462879,20.0,16.014,16.004,17.0]
[1673427463090,20.0,16.014,16.003,18.92]
[1673427463522,114.4181,16.015,16.003,18.92]
[1673427463930,20.0,16.014,16.003,18.92]
[1673427464139,114.4181,16.015,16.003,18.92]
[1673427464885,20.0,16.014,16.003,18.92]
[1673427466150,114.4181,16.015,16.003,18.92]
[1673427468367,20.0,16.014,16.003,18.92]
[1673427468977,114.4181,16.015,16.003,18.92]
[1673427469316,114.4181,16.015,16.003,38.92]
[1673427469512,114.4181,16.015,16.004,46.88]
[1673427469727,114.4181,16.015,16.005,1.92]
[1673427469929,114.4181,16.015,16.005,38.92]
[1673427471107,114.4181,16.015,16.005,18.92]
[1673427471712,114.4181,16.015,16.005,17.0]
[1673427473626,114.4181,16.015,16.005,16.88649156]
[1673427474025,114.4181,16.015,16.003,20.0]
[1673427474266,114.4181,16.015,16.004,1.92]
[1673427475826,114.4181,16.015,16.004,18.92]
[1673427476549,114.4181,16.015,16.004,65.8]
[1673427476750,24.4181,16.015,16.004,65.8]
[1673427477191,394.3,16.017,16.005,20.0]
[1673427477401,20.0,16.019,16.006,18.92]
[1673427479820,46.84,16.018,16.006,18.92]
[1673427480008,66.84,16.019,16.006,18.92]
[1673427480877,46.82,16.024,16.01,26.63]
[1673427481063,46.81,16.028,16.011,85.78]
[1673427481706,20.0,16.027,16.012,20.0]
[1673427481916,20.0,16.027,16.013,47.81]
[1673427482122,117.5667,16.026,16.013,46.85]
[1673427482330,117.5667,16.026,16.014,37.0]
[1673427486029,117.5667,16.026,16.013,46.85]
[1673427486221,117.5667,16.026,16.012,46.86]
[1673427486421,20.0,16.025,16.012,46.86]
[1673427487274,20.0,16.025,16.013,17.0]
[1673427487914,20.0,16.025,16.014,46.85]
[1673427488133,20.0,16.025,16.015,17.0]
[1673427488639,117.5667,16.026,16.015,17.0]
[1673427488851,117.5667,16.026,16.014,63.85]
[1673427489288,20.0,16.025,16.014,63.85]
[1673427490872,117.5667,16.026,16.014,63.85]
[1673427491173,20.0,16.025,16.014,63.85]
[1673427491364,20.0,16.025,16.014,17.0]
[1673427491574,20.0,16.025,16.013,17.0]
[1673427498737,20.0,16.025,16.014,46.85]
[1673427498950,20.0,16.025,16.015,17.0]
[1673427501156,117.5667,16.026,16.014,63.85]
[1673427502083,20.0,16.025,16.014,63.85]
[1673427502843,117.5667,16.026,16.015,20.0]
[1673427503033,117.5667,16.026,16.016,17.0]
[1673427505381,20.0,16.025,16.015,17.0]
[1673427505801,117.5667,16.026,16.015,17.0]
[1673427506113,117.5667,16.026,16.017,20.0]
[1673427506303,117.5667,16.026,16.018,17.0]
[1673427508423,117.5667,16.026,16.016,46.84]
[1673427508637,117.5667,16.026,16.017,17.0]
[1673427508828,117.5667,16.026,16.018,17.0]
[1673427509249,117.5667,16.026,16.016,46.84]
[1673427509473,117.5667,16.026,16.017,17.0]
[1673427514089,20.0,16.025,16.017,17.0]
[1673427514312,117.5667,16.026,16.017,17.0]
[1673427515161,20.0,16.025,16.017,17.0]
[1673427516002,117.5667,16.026,16.017,17.0]
[1673427520210,117.5667,16.026,16.018,20.0]
[1673427520419,117.5667,16.026,16.019,17.0]
[1673427520733,111.8171,16.029,16.02,66.83]
[1673427520946,111.8171,16.029,16.021,37.0]
[1673427522421,111.8171,16.029,16.022,46.83]
[1673427525765,20.0,16.028,16.021,63.83]
[1673427525976,111.8171,16.029,16.021,63.83]
[1673427527358,111.8171,16.029,16.022,20.0]
[1673427527567,111.8171,16.029,16.022,37.0]
[1673427527783,111.8171,16.029,16.022,20.0]
[1673427527970,111.8171,16.029,16.021,63.83]
[1673427528388,111.8171,16.029,16.021,46.83]
[1673427528603,111.8171,16.029,16.013,20.0]
[1673427528604,20.0,16.028,16.013,20.0]
[1673427528826,66.81,16.028,16.013,20.0]
[1673427529354,66.81,16.028,16.015,66.85]
[1673427529759,20.0,16.028,16.015,66.85]
[1673427529985,20.0,16.028,16.016,17.0]
[1673427531238,109.9599,16.027,16.016,17.0]
[1673427531878,109.9599,16.027,16.017,20.0]
[1673427532303,109.9599,16.027,16.018,17.0]
[1673427535561,111.8171,16.029,16.018,17.0]
[1673427535880,111.8171,16.029,16.02,20.0]
[1673427536068,111.8171,16.029,16.022,20.0]
[1673427536600,111.8171,16.029,16.022,37.0]
[1673427539247,0.000468,16.023,16.022,37.0]
[1673427539438,112.9271,16.034,16.022,37.0]
[1673427539439,112.9271,16.034,16.023,20.0]
[1673427539655,112.9271,16.034,16.025,20.0]
[1673427540188,112.9271,16.034,16.026,17.0]
[1673427542593,112.9271,16.034,16.026,63.82]
[1673427542804,112.9271,16.034,16.027,20.0]
[1673427543226,112.9271,16.034,16.028,17.0]
[1673427547959,110.8921,16.038,16.028,17.0]
[1673427548173,110.8921,16.038,16.029,20.0]
[1673427548486,110.8921,16.038,16.03,63.8]
[1673427548696,110.8921,16.038,16.032,20.0]
[1673427549014,110.8921,16.038,16.033,17.0]
[1673427549330,110.8921,16.038,16.032,20.0]
[1673427552596,110.8921,16.038,16.031,20.0]
[1673427552787,110.8921,16.038,16.03,20.0]
[1673427553427,110.8921,16.038,16.031,17.0]
[1673427553957,110.8921,16.038,16.032,20.0]
[1673427557956,110.8921,16.038,16.033,17.0]
[1673427558357,110.8921,16.038,16.032,20.0]
[1673427558567,110.8921,16.038,16.031,20.0]
[1673427559103,110.8921,16.038,16.03,20.0]
[1673427565919,110.8921,16.038,16.03,66.8]
[1673427566142,110.8921,16.038,16.031,20.0]
[1673427566969,110.8921,16.038,16.032,17.0]
[1673427574536,110.8921,16.038,16.03,66.8]
[1673427574757,110.8921,16.038,16.03,20.0]
[1673427575289,110.8921,16.038,16.028,66.81]
[1673427575904,110.8921,16.038,16.029,17.0]
[1673427576235,110.8921,16.038,16.03,20.0]
[1673427576552,110.8921,16.038,16.031,17.0]
[1673427577286,110.8921,16.038,16.03,20.0]
[1673427577476,110.8921,16.038,16.028,20.0]
[1673427577688,110.8921,16.038,16.029,17.0]
[1673427577910,110.8921,16.038,16.03,20.0]
[1673427580112,110.8921,16.038,16.031,17.0]
[1673427586823,110.8921,16.038,16.03,20.0]
[1673427587034,20.0,16.037,16.029,20.0]
[1673427587243,110.8921,16.038,16.029,20.0]
[1673427587462,110.8921,16.038,16.028,20.0]
[1673427587678,110.8921,16.038,16.029,20.0]
[1673427588297,20.0,16.037,16.029,20.0]
[1673427588520,110.8921,16.038,16.027,20.0]
[1673427588729,110.8921,16.038,16.028,20.0]
[1673427588938,110.8921,16.038,16.029,20.0]
[1673427589364,110.8921,16.038,16.03,63.8]
[1673427589562,110.8921,16.038,16.031,40.0]
[1673427589764,110.8921,16.038,16.032,17.0]
[1673427593790,111.4778,16.043,16.032,17.0]
[1673427594004,111.4778,16.043,16.033,46.79]
[1673427594211,111.4778,16.043,16.034,17.0]
[1673427594416,111.4778,16.043,16.032,63.8]
[1673427594840,111.4778,16.043,16.032,17.0]
[1673427595376,20.0,16.042,16.032,17.0]
[1673427596200,111.4778,16.043,16.032,17.0]
[1673427599578,111.4778,16.043,16.031,20.0]
[1673427599785,46.77,16.042,16.031,20.0]
[1673427600822,111.4778,16.043,16.031,20.0]
[1673427601366,111.4778,16.043,16.032,17.0]
[1673427602629,46.76,16.045,16.032,17.0]
[1673427602825,117.065868,16.047,16.033,1.92]
[1673427603037,46.76,16.046,16.033,48.71]
[1673427603247,46.76,16.046,16.033,46.79]
[1673427603458,163.815868,16.047,16.034,37.0]
[1673427604940,20.0,16.046,16.034,37.0]
[1673427605551,20.0,16.046,16.034,17.0]
[1673427606519,20.0,16.046,16.032,46.8]
[1673427606706,20.0,16.046,16.031,66.8]
[1673427606925,46.76,16.045,16.031,66.8]
[1673427607338,66.76,16.046,16.031,66.8]
[1673427607559,66.76,16.046,16.032,20.0]
[1673427609145,66.76,16.046,16.031,20.0]
[1673427609359,20.0,16.044,16.031,20.0]
[1673427609662,46.77,16.043,16.031,20.0]
[1673427610082,20.0,16.042,16.031,20.0]
[1673427610606,20.0,16.042,16.03,20.0]
[1673427612081,20.0,16.042,16.029,20.0]
[1673427613459,20.0,16.042,16.03,17.0]
[1673427613682,17.0,16.041,16.031,20.0]
[1673427613984,20.0,16.04,16.031,20.0]
[1673427614197,20.0,16.04,16.027,20.0]
[1673427614514,20.0,16.04,16.028,46.81]
[1673427614824,46.29,16.04,16.029,20.0]
[1673427615229,65.04512149,16.04,16.027,20.0]
[1673427615446,65.04512149,16.04,16.025,20.0]
[1673427615659,65.04512149,16.04,16.026,46.82]
[1673427615871,65.04512149,16.04,16.027,20.0]
[1673427616495,46.77,16.041,16.028,63.81]
[1673427616705,46.77,16.041,16.029,20.0]
[1673427616906,128.5717,16.042,16.03,17.0]
[1673427617135,128.5717,16.042,16.031,20.0]
[1673427621853,46.77,16.041,16.031,20.0]
[1673427622060,20.0,16.04,16.031,20.0]
[1673427623869,17.0,16.039,16.026,46.82]
[1673427624178,18.75512149,16.038,16.011,3.6278]
[1673427624360,18.75512149,16.038,16.013,129.8994]
[1673427624361,63.78,16.037,16.013,129.8994]
[1673427624585,135.8014,16.036,16.015,46.85]
[1673427624909,63.79,16.035,16.014,46.85]
[1673427625236,20.0,16.034,16.014,46.85]
[1673427625433,20.0,16.032,16.014,46.85]
[1673427626702,20.0,16.032,16.015,20.0]
[1673427626913,20.0,16.032,16.016,48.76]
[1673427627134,20.0,16.032,16.017,20.0]
[1673427627443,20.0,16.032,16.018,46.84]
[1673427627654,20.0,16.032,16.019,37.0]
[1673427627852,20.0,16.032,16.02,46.83]
[1673427628067,20.0,16.032,16.021,37.0]
[1673427633636,46.79,16.033,16.021,37.0]
[1673427633832,66.79,16.034,16.021,37.0]
[1673427638796,66.79,16.034,16.021,20.0]
[1673427639212,18.75512149,16.033,16.016,20.0]
[1673427639435,20.0,16.031,16.017,63.84]
[1673427639641,20.0,16.031,16.018,20.0]
[1673427639856,20.0,16.031,16.019,63.84]
[1673427640072,20.0,16.031,16.02,20.0]
[1673427648354,26.49,16.03,16.02,20.0]
[1673427648572,26.49,16.03,16.02,66.83]
[1673427658565,26.49,16.03,16.021,17.0]
[1673427658989,26.49,16.03,16.022,46.83]
[1673427663190,115.8014,16.036,16.022,46.83]
[1673427663391,114.9157,16.038,16.023,1.92]
[1673427663596,114.9157,16.038,16.024,46.82]
[1673427663826,114.9157,16.038,16.025,20.0]
[1673427664025,114.9157,16.038,16.026,63.82]
[1673427666026,108.7648,16.046,16.027,1.92]
[1673427666350,108.7648,16.046,16.028,46.81]
[1673427666535,20.0,16.045,16.03,20.0]
[1673427666747,20.0,16.045,16.031,67.76]
[1673427666967,20.0,16.045,16.032,17.0]
[1673427667183,20.0,16.045,16.033,46.79]
[1673427667382,108.7648,16.046,16.034,17.0]
[1673427667592,108.7648,16.046,16.035,46.79]
[1673427668124,108.7648,16.046,16.036,17.0]
[1673427668446,20.0,16.045,16.036,17.0]
[1673427669488,5.630468,16.047,16.037,66.78]
[1673427670021,5.630468,16.047,16.038,37.0]
[1673427670239,5.630468,16.047,16.039,66.78]
[1673427670445,5.630468,16.047,16.04,37.0]
[1673427670655,5.630468,16.047,16.041,46.77]
[1673427671192,5.630468,16.047,16.042,17.0]
[1673427672956,5.630468,16.047,16.036,46.79]
[1673427673171,5.630468,16.047,16.034,46.79]
[1673427673382,20.0,16.046,16.031,46.8]
[1673427673601,115.684668,16.047,16.035,20.0]
[1673427673803,115.684668,16.047,16.036,46.79]
[1673427674965,115.684668,16.047,16.037,17.0]
[1673427676319,5.630468,16.047,16.037,17.0]
[1673427676529,5.630468,16.047,16.038,46.78]
[1673427676966,5.630468,16.047,16.039,17.0]
[1673427679489,5.630468,16.047,16.036,46.79]
[1673427679804,20.0,16.046,16.034,46.79]
[1673427680421,20.0,16.046,16.033,46.79]
[1673427680886,20.0,16.046,16.034,17.0]
[1673427681078,20.0,16.046,16.035,46.79]
[1673427681387,20.0,16.046,16.036,17.0]
[1673427681906,5.630468,16.047,16.036,17.0]
[1673427682104,5.630468,16.047,16.037,48.7]
[1673427682315,5.630468,16.047,16.038,17.0]
[1673427683066,25.630468,16.047,16.035,46.79]
[1673427683386,25.630468,16.047,16.036,17.0]
[1673427684534,5.630468,16.047,16.036,17.0]
[1673427684747,5.630468,16.047,16.037,46.78]
[1673427684957,5.630468,16.047,16.038,17.0]
[1673427686214,5.630468,16.047,16.039,46.78]
[1673427686415,5.630468,16.047,16.04,17.0]
[1673427686626,5.630468,16.047,16.037,46.78]
[1673427686830,5.630468,16.047,16.038,18.92]
[1673427687046,5.630468,16.047,16.039,46.78]
[1673427687466,5.630468,16.047,16.04,17.0]
[1673427688297,5.630468,16.047,16.041,46.77]
[1673427688537,5.630468,16.047,16.042,20.0]
[1673427688835,5.630468,16.047,16.043,46.77]
[1673427689581,5.630468,16.047,16.041,46.77]
[1673427689773,5.630468,16.047,16.042,17.0]
[1673427689982,5.630468,16.047,16.043,46.77]
[1673427690411,5.630468,16.047,16.044,17.0]
[1673427692083,5.630468,16.047,16.043,46.77]
[1673427692502,5.630468,16.047,16.044,17.0]
[1673427695562,5.630468,16.047,16.041,46.77]
[1673427695770,5.630468,16.047,16.037,46.78]
[1673427695983,5.630468,16.047,16.038,20.0]
[1673427696189,5.630468,16.047,16.039,46.78]
[1673427696399,5.630468,16.047,16.04,20.0]
[1673427696612,5.630468,16.047,16.041,46.77]
[1673427697549,5.630468,16.047,16.042,17.0]
[1673427698703,5.630468,16.047,16.037,46.78]
[1673427698919,123.064668,16.047,16.035,46.79]
[1673427699144,20.0,16.046,16.034,46.79]
[1673427699543,123.064668,16.047,16.034,46.79]
[1673427699771,20.0,16.046,16.035,12.31651069]
[1673427699982,20.0,16.046,16.036,46.79]
[1673427700180,20.0,16.046,16.034,46.79]
[1673427700391,20.0,16.046,16.035,17.0]
[1673427700597,20.0,16.046,16.036,46.79]
[1673427701016,20.0,16.046,16.034,46.79]
[1673427701547,20.0,16.046,16.033,46.79]
[1673427702170,20.0,16.046,16.034,17.0]
[1673427702379,20.0,16.046,16.035,46.79]
[1673427711546,123.064668,16.047,16.035,46.79]
[1673427711759,123.064668,16.047,16.036,17.0]
[1673427711971,123.064668,16.047,16.037,46.78]
[1673427712161,123.064668,16.047,16.038,17.0]
[1673427712793,123.064668,16.047,16.037,17.0]
[1673427713003,123.064668,16.047,16.038,46.78]
[1673427713212,123.064668,16.047,16.039,17.0]
[1673427719721,123.064668,16.047,16.038,17.0]
[1673427719952,123.064668,16.047,16.036,46.79]
[1673427720269,20.0,16.046,16.032,46.8]
[1673427720461,20.0,16.046,16.031,46.8]
[1673427720879,20.0,16.046,16.032,20.0]
[1673427721090,20.0,16.046,16.033,46.79]
[1673427723000,20.0,16.046,16.034,17.0]
[1673427725951,20.0,16.046,16.035,46.79]
[1673427726166,123.064668,16.047,16.046,0.0982689]
[1673427731322,123.064668,16.047,16.046,0.03446064]
[1673427737727,123.064668,16.047,16.033,20.0]
[1673427737931,123.064668,16.047,16.023,20.0]
[1673427737932,37.0,16.046,16.023,20.0]
[1673427738146,20.0,16.044,16.023,20.0]
[1673427738353,20.0,16.042,16.025,20.0]
[1673427738561,20.0,16.042,16.026,46.82]
[1673427738762,20.0,16.042,16.027,20.0]
[1673427738975,20.0,16.042,16.028,46.81]
[1673427739205,20.0,16.042,16.029,20.0]
[1673427739509,20.0,16.042,16.03,46.8]
[1673427740347,46.77,16.043,16.03,46.8]
[1673427740566,46.76,16.044,16.032,20.0]
[1673427740969,46.76,16.045,16.033,17.0]
[1673427749394,46.76,16.046,16.033,17.0]
[1673427749706,20.0,16.045,16.033,17.0]
[1673427749921,46.76,16.046,16.033,17.0]
[1673427750107,123.064668,16.047,16.034,46.79]
[1673427750444,123.064668,16.047,16.035,17.0]
[1673427750861,123.064668,16.047,16.036,17.0]
[1673427751067,123.064668,16.047,16.035,46.79]
[1673427751280,122.98065624,16.047,16.036,17.0]
[1673427754531,46.76,16.046,16.036,17.0]
[1673427754846,20.0,16.045,16.036,17.0]
[1673427755267,66.76,16.045,16.036,17.0]
[1673427757493,85.51512149,16.045,16.032,46.8]
[1673427757702,17.0,16.044,16.028,46.81]
[1673427757893,46.77,16.043,16.029,20.0]
[1673427758212,20.0,16.042,16.029,20.0]
[1673427758424,20.0,16.042,16.028,20.0]
[1673427758642,20.0,16.04,16.029,46.81]
[1673427758855,20.0,16.04,16.03,37.0]
[1673427762836,66.77,16.042,16.03,37.0]
[1673427764744,20.0,16.042,16.03,37.0]
[1673427767912,46.77,16.043,16.032,20.0]
[1673427768089,46.76,16.044,16.032,20.0]
[1673427768427,46.76,16.044,16.033,17.0]
[1673427768621,46.76,16.044,16.031,46.8]
[1673427768833,20.0,16.043,16.032,17.0]
[1673427770107,46.76,16.044,16.032,17.0]
[1673427770303,66.76,16.046,16.032,17.0]
[1673427770510,66.76,16.046,16.033,46.79]
[1673427770730,46.76,16.046,16.033,46.79]
[1673427771051,46.76,16.046,16.03,20.0]
[1673427771052,46.76,16.046,16.034,17.0]
[1673427771262,46.76,16.046,16.035,46.79]
[1673427771447,169.73065624,16.047,16.036,17.0]
[1673427771870,122.98065624,16.047,16.036,17.0]
[1673427772614,122.98065624,16.047,16.035,46.79]
[1673427772819,122.98065624,16.047,16.036,17.0]
[1673427773886,122.98065624,16.047,16.037,46.78]
[1673427774289,122.98065624,16.047,16.038,17.0]
[1673427778393,122.98065624,16.047,16.035,46.79]
[1673427778719,122.98065624,16.047,16.036,17.0]
[1673427778919,169.73065624,16.047,16.036,17.0]
[1673427779360,122.98065624,16.047,16.037,20.0]
[1673427779552,122.98065624,16.047,16.038,17.0]
[1673427780698,169.73065624,16.047,16.038,17.0]
[1673427780909,122.98065624,16.047,16.038,17.0]
[1673427782817,20.0,16.046,16.035,46.79]
[1673427783130,20.0,16.046,16.033,46.79]
[1673427783659,66.76,16.046,16.033,46.79]
[1673427784179,66.76,16.046,16.034,17.0]
[1673427793541,20.0,16.046,16.034,17.0]
[1673427796487,46.76,16.045,16.034,17.0]
[1673427796698,66.76,16.046,16.032,66.8]
[1673427797010,122.98065624,16.047,16.033,17.0]
[1673427797207,122.98065624,16.047,16.035,20.0]
[1673427797418,122.98065624,16.047,16.036,63.79]
[1673427799097,122.98065624,16.047,16.036,17.0]
[1673427804296,169.73065624,16.047,16.036,17.0]
[1673427804480,169.73065624,16.047,16.035,17.0]
[1673427804916,20.0,16.046,16.035,17.0]
[1673427805971,169.73065624,16.047,16.035,63.79]
[1673427806181,169.73065624,16.047,16.035,17.0]
[1673427810701,20.0,16.046,16.035,17.0]
[1673427810891,20.0,16.046,16.035,63.79]
[1673427811102,122.98065624,16.047,16.035,63.79]
[1673427812698,122.98065624,16.047,16.036,21.92]
[1673427813007,122.98065624,16.047,16.037,83.78]
[1673427813216,122.98065624,16.047,16.038,20.0]
[1673427813432,122.98065624,16.047,16.039,17.0]
[1673427813619,122.98065624,16.047,16.04,20.0]
[1673427814150,122.98065624,16.047,16.041,17.0]
[1673427816167,122.98065624,16.047,16.04,20.0]
[1673427816485,122.98065624,16.047,16.037,20.0]
[1673427816788,122.98065624,16.047,16.035,20.0]
[1673427816983,122.98065624,16.047,16.034,46.79]
[1673427817194,20.0,16.045,16.032,66.8]
[1673427817510,46.76,16.044,16.032,66.8]
[1673427817838,46.76,16.044,16.034,17.0]
[1673427818367,46.76,16.045,16.034,17.0]
[1673427823941,45.76,16.045,16.034,17.0]
[1673427824876,46.76,16.046,16.034,17.0]
[1673427825930,122.98065624,16.047,16.036,20.0]
[1673427826146,122.98065624,16.047,16.037,17.0]
[1673427826863,20.0,16.046,16.037,17.0]
[1673427827087,66.76,16.046,16.037,17.0]
[1673427827300,20.0,16.046,16.037,17.0]
[1673427827944,66.76,16.046,16.037,17.0]
[1673427828136,66.76,16.046,16.033,66.79]
[1673427828347,66.76,16.046,16.034,17.0]
[1673427832251,66.76,16.046,16.033,46.79]
[1673427832447,66.76,16.046,16.032,46.8]
[1673427832657,66.76,16.046,16.031,46.8]
[1673427833716,66.76,16.046,16.032,17.0]